fUST/lending_fUST_20240502
["ID","MTS","AMOUNT","RATE_DAILY","PERIOD"]
[325252616,1714656639982,-151.0,0.00043733,7]
[325252617,1714656639991,-151.0,0.00043733,7]
[325252618,1714656640000,-161.36883342,0.00043813,2]
[325252619,1714656640010,-312.89591059,0.00043829,4]
[325252620,1714656640020,-28577.37478821,0.00043831,4]
[325252621,1714656640030,-278.93646986,0.00043831,4]
[325252622,1714656640039,-372.87562938,0.00043831,4]
[325252623,1714656640052,-381.95389996,0.00043831,4]
[325252624,1714656640062,-354.96876268,0.00043831,4]
[325252625,1714656640072,-151.0,0.00043831,7]
[325252626,1714656640081,-151.0,0.00043831,7]
[325252627,1714656640092,-151.232795,0.00043831,7]
[325252628,1714656640102,-151.232795,0.00043831,7]
[325252629,1714656640111,-151.0,0.00043831,7]
[325252630,1714656640121,-169.178595,0.00043831,7]
[325252631,1714656640133,-151.0,0.00043831,7]
[325252632,1714656640144,-151.0,0.00043831,7]
[325252633,1714656640154,-1966.77017511,0.00043832,30]
[325252634,1714656640164,-583.66545878,0.00043832,4]
[325252635,1714656640173,-3000.0,0.00043832,10]
[325252636,1714656640183,-3000.0,0.00043832,10]
[325252637,1714656640192,-3000.0,0.00043832,10]
[325252638,1714656640202,-1018.59997527,0.00043832,10]
[325252639,1714656640212,-151.0,0.00043832,7]
[325252640,1714656640221,-151.232795,0.00043832,7]
[325252641,1714656640231,-151.232795,0.00043832,7]
[325252642,1714656640244,-151.0,0.00043832,7]
[325252643,1714656640254,-151.0,0.00043832,7]
[325252644,1714656640264,-141102.54092298,0.00043833,20]
[325252645,1714656640273,-379.24165137,0.00043833,4]
[325252646,1714656640288,-151.0,0.00043833,7]
[325252648,1714656640298,-151.232795,0.00043833,7]
[325252649,1714656640307,-151.232797,0.00043833,7]
[325252650,1714656640317,-151.0,0.00043833,7]
[325252651,1714656640326,-151.0,0.00043833,7]
[325252652,1714656640336,-493652.60794274,0.00043834,60]
[325252676,1714656640649,-4152.54843371,0.00043834,60]
[325252678,1714656640663,-3476.3641041,0.00043834,60]
[325252679,1714656640676,-11776.31640729,0.00043834,60]
[325252680,1714656640690,-6153.32170198,0.00043834,60]
[325252700,1714656648368,-213.80486375,0.00043399,31]
[325252701,1714656648378,-151.0,0.000434,7]
[325252702,1714656648390,-151.0,0.000434,7]
[325252703,1714656648400,-151.0,0.000434,7]
[325252704,1714656648409,-151.0,0.000435,7]
[325252705,1714656648419,-151.0,0.000436,7]
[325252706,1714656648429,-151.0,0.000437,7]
[325252707,1714656648439,-151.0,0.00043733,7]
[325252708,1714656648448,-151.0,0.00043831,7]
[325252709,1714656648458,-1312.45119977,0.00043832,4]
[325252710,1714656648467,-5000.0,0.00043833,4]
[325252711,1714656648476,-577.99351415,0.00043833,4]
[325252712,1714656648486,-29061.26748761,0.00043834,60]
[325252713,1714656693085,513.62826991,9.999e-05,2]
[325252714,1714656747381,154.79876161,9.999e-05,2]
[325252715,1714656791011,178.16668686,9.999e-05,2]
[325252770,1714657839005,-154.73694719,0.00019999,2]
[325252771,1714657839015,-4674.66260155,0.0002,2]
[325252772,1714657839024,-24900.0,0.0002231,2]
[325252773,1714657839034,-183.1218272,0.00028393,2]
[325252774,1714657839044,-159.75336,0.00028493,2]
[325252775,1714657839053,-162.095269,0.00028493,2]
[325252776,1714657839063,-166.754344,0.00028493,2]
[325252777,1714657839073,-204.9,0.00031519,3]
[325252778,1714657839083,-722.45030278,0.00035,4]
[325252779,1714657839093,-214.220365,0.00035616,120]
[325252780,1714657839103,-5041.59169485,0.0003739,10]
[325252781,1714657839113,-150.0,0.00041684,2]
[325252782,1714657839124,-194.99106527,0.00041734,2]
[325252783,1714657839134,-162.095269,0.00042055,2]
[325252784,1714657839151,-154.8672724,0.00042758,4]
[325252785,1714657839160,-324.7272653,0.00043,7]
[325252786,1714657839171,-161.0,0.00043,90]
[325252787,1714657839181,-1603.93941396,0.0004321,4]
[325252788,1714657839192,-154.81424147,0.00043631,4]
[325252789,1714657839203,-156.77190163,0.00043632,4]
[325252790,1714657839213,-187.04162259,0.00043634,2]
[325252791,1714657839223,-187.04162258,0.00043668,2]
[325252792,1714657839233,-187.04162258,0.00043701,2]
[325252793,1714657839242,-743.87,0.00043724,30]
[325252794,1714657839252,-3734.67,0.00043724,3]
[325252795,1714657839261,-3112.22,0.00043724,3]
[325252796,1714657839270,-2593.52,0.00043724,3]
[325252797,1714657839280,-231.18152609,0.00043733,4]
[325252798,1714657839290,-3051.21388193,0.00043733,4]
[325252799,1714657839299,-549.92372763,0.00043734,2]
[325252800,1714657839308,-54682.57548084,0.00043734,5]
[325252801,1714657839317,-1092.20737516,0.00043734,2]
[325252802,1714657839329,-907.79262484,0.00043734,2]
[325252803,1714657839339,-183.12182719,0.00043734,2]
[325252804,1714657839348,-187.04162258,0.00043735,2]
[325252805,1714657839358,-23464.88582606,0.00043802,7]
[325252806,1714657839367,-472.68114332,0.00043832,4]
[325252807,1714657839378,-242.39245323,0.00043832,4]
[325252808,1714657839392,-164.0768642,0.00043832,4]
[325252809,1714657839401,-4460.80601657,0.00043832,4]
[325252810,1714657839411,-185.81629862,0.00043832,4]
[325252811,1714657839423,-648.24701942,0.00043832,4]
[325252812,1714657839434,-1203.25513556,0.00043832,4]
[325252813,1714657839444,-189.3964787,0.00043832,2]
[325252814,1714657839454,-717.86575868,0.00043832,4]
[325252815,1714657839465,-903.46440735,0.00043832,4]
[325252816,1714657839475,-683.1495983,0.00043832,4]
[325252817,1714657839485,-890.802326,0.00043832,4]
[325252818,1714657839497,-155.28802997,0.00043832,7]
[325252819,1714657839511,-193.65224844,0.00043832,4]
[325252820,1714657839526,-1712.22652709,0.00043832,4]
[325252821,1714657839539,-2588.41116025,0.00043832,4]
[325252822,1714657839550,-1676.30195278,0.00043832,4]
[325252823,1714657839561,-574.45001192,0.00043832,4]
[325252824,1714657839574,-43795.85120278,0.00043833,4]
[325252825,1714657839586,-97023.12083487,0.00043834,60]
[325252826,1714657839602,-573392.79056149,0.00043834,60]
[325252860,1714657844239,-3353.52018739,0.00043834,60]
[325252862,1714657844255,-22104.69368146,0.00043834,60]
[325252962,1714658080368,398.0620162,0.000125,2]
[325252993,1714659002575,815.53341736,0.00017599,2]
[325253015,1714659032903,-154.73694719,0.00018899,2]
[325253016,1714659032912,-318.24334562,0.000189,2]
[325253017,1714659032922,-24900.0,0.0001984,2]
[325253018,1714659032932,-306.16416353,0.00022635,2]
[325253019,1714659032941,-318.24334562,0.000239,2]
[325253020,1714659032951,-183.040438,0.00024522,2]
[325253021,1714659032961,-306.009666,0.00026462,2]
[325253022,1714659032971,-163.577417,0.00028493,2]
[325253023,1714659032981,-160.758763,0.00028493,2]
[325253024,1714659032990,-318.24334562,0.000289,2]
[325253025,1714659033000,-199.75404568,0.00029372,2]
[325253026,1714659033009,-248.5,0.00030823,3]
[325253027,1714659033019,-214.220365,0.00035616,120]
[325253028,1714659033029,-3387.06118485,0.00035622,2]
[325253029,1714659033038,-183.040438,0.00036783,2]
[325253030,1714659033048,-163.577417,0.00040548,2]
[325253031,1714659033057,-160.758763,0.00040548,2]
[325253032,1714659033067,-636.92113,0.00041663,2]
[325253033,1714659033076,-636.92114,0.00042342,2]
[325253034,1714659033085,-161.0,0.00043,90]
[325253035,1714659033098,-636.92114,0.00043022,2]
[325253036,1714659033107,-189.0935612,0.00043734,2]
[325253037,1714659033116,-2000.0,0.00043734,2]
[325253038,1714659033125,-721.52976241,0.000438,30]
[325253039,1714659033134,-399.35,0.00043824,30]
[325253040,1714659033143,-332.79,0.00043824,30]
[325253041,1714659033152,-277.33,0.00043824,30]
[325253042,1714659033160,-231.11,0.00043824,30]
[325253043,1714659033169,-192.59,0.00043824,30]
[325253044,1714659033178,-2161.27,0.00043824,3]
[325253045,1714659033187,-160.49,0.00043824,30]
[325253046,1714659033196,-1801.06,0.00043824,3]
[325253047,1714659033206,-802.47,0.00043824,30]
[325253048,1714659033215,-1500.88,0.00043824,3]
[325253049,1714659033225,-1880.12188062,0.00043832,4]
[325253050,1714659033235,-206.3030976,0.00043832,4]
[325253051,1714659033244,-172.04613006,0.00043832,120]
[325253052,1714659033253,-157.58219537,0.00043832,4]
[325253053,1714659033263,-347.51126084,0.00043832,4]
[325253054,1714659033272,-169.88281456,0.00043832,4]
[325253090,1714659042902,-305.24992994,0.00043832,4]
[325253091,1714659042913,-176.22116808,0.00043832,4]
[325253092,1714659042923,-155.6404435,0.00043832,4]
[325253093,1714659042932,-520.52223815,0.00043832,4]
[325253094,1714659042943,-309.56660676,0.00043832,4]
[325253095,1714659042953,-379.51472742,0.00043832,4]
[325253096,1714659042962,-907.8166184,0.00043832,4]
[325253097,1714659042972,-354.53333669,0.00043832,4]
[325253098,1714659042981,-5461.4995396,0.00043833,4]
[325253099,1714659042990,-3247.83539146,0.00043834,7]
[325253105,1714659043516,-2563.86570803,0.00043834,7]
[325253109,1714659233221,10000.0,0.000266,120]
[325253113,1714660234988,-154.73694719,0.00020912,2]
[325253114,1714660234997,-7464.61537373,0.00020913,2]
[325253133,1714660239842,-1416.54735772,0.00020913,2]
[325253134,1714660239858,-24900.0,0.0002231,2]
[325253135,1714660239876,-163.312678,0.00028493,2]
[325253136,1714660239889,-161.014387,0.00028493,2]
[325253137,1714660239901,-7000.0,0.00030137,120]
[325253138,1714660239914,-227.8,0.00030516,3]
[325253139,1714660239927,-163.312678,0.00036243,2]
[325253140,1714660239940,-161.014387,0.00037534,2]
[325253141,1714660239953,-806.99851228,0.0004349,10]
[325253142,1714660239967,-1075.21521345,0.0004349,10]
[325253144,1714660240752,-1013.66372662,0.0004349,10]
[325253148,1714660240930,-2104.12254765,0.0004349,10]
[325253149,1714660240943,-1430.29549214,0.00043734,2]
[325253150,1714660240954,-514.39779774,0.00043735,2]
[325253151,1714660240965,-308.53,0.00043824,30]
[325253152,1714660240978,-318.82,0.00043824,30]
[325253153,1714660240990,-265.68,0.00043824,30]
[325253154,1714660241001,-221.4,0.00043824,30]
[325253155,1714660241011,-184.5,0.00043824,30]
[325253156,1714660241023,-153.75,0.00043824,30]
[325253157,1714660241035,-87.76084334,0.00043824,30]
[325253183,1714660244515,-681.01915666,0.00043824,30]
[325253184,1714660244527,-68.09398163,0.00043824,3]
[325253206,1714660249142,-1476.43601837,0.00043824,3]
[325253207,1714660249152,-1287.11,0.00043824,3]
[325253208,1714660249163,-1072.59,0.00043824,3]
[325253209,1714660249173,-342.90586125,0.00043832,4]
[325253210,1714660249183,-154.78330338,0.00043832,4]
[325253211,1714660249193,-212.29957186,0.00043832,4]
[325253212,1714660249203,-618.40516465,0.00043832,4]
[325253213,1714660249213,-155.79107961,0.00043832,4]
[325253214,1714660249224,-154.79876161,0.00043832,4]
[325253215,1714660249235,-498.1889,0.00043832,2]
[325253216,1714660249245,-379.51472742,0.00043832,4]
[325253217,1714660249254,-224.02798171,0.00043832,4]
[325253218,1714660249265,-208.30911334,0.00043833,4]
[325253219,1714660249275,-500.0,0.00043833,7]
[325253220,1714660249284,-500.0,0.00043833,7]
[325253221,1714660249294,-500.0,0.00043833,7]
[325253222,1714660249303,-500.0,0.00043833,7]
[325253223,1714660249313,-341.70509233,0.00043833,7]
[325253224,1714660249324,-411.97150717,0.00043834,7]
[325253225,1714660341660,154.73694719,9.999e-05,2]
[325253226,1714660387337,280.86261149,9.999e-05,2]
[325253227,1714660403361,257.81480343,9.999e-05,2]
[325253228,1714660569847,362.43735535,9.999e-05,2]
[325253229,1714660592046,527.05896574,9.999e-05,2]
[325253230,1714660592544,409.39448055,9.999e-05,2]
[325253231,1714660597214,154.70605849,9.999e-05,2]
[325253232,1714660599617,154.70605849,9.999e-05,2]
[325253233,1714660606637,154.70605849,9.999e-05,2]
[325253234,1714660607750,309.62844586,9.999e-05,2]
[325253235,1714660617973,775.19684388,9.999e-05,2]
[325253236,1714660622949,981.99841714,9.999e-05,2]
[325253237,1714660625439,469.0831444,9.999e-05,2]
[325253238,1714660636313,235.89828702,9.999e-05,2]
[325253239,1714660637859,551.84117837,9.999e-05,2]
[325253240,1714660638415,154.70605849,9.999e-05,2]
[325253241,1714660653466,1091.92588684,9.999e-05,2]
[325253242,1714660692281,154.70605849,9.999e-05,2]
[325253243,1714660699046,550.24541163,9.999e-05,2]
[325253244,1714660710466,154.70605849,9.999e-05,2]
[325253245,1714660723041,522.27929623,9.999e-05,2]
[325253246,1714660725100,1313.56424433,0.0001,2]
[325253247,1714660725967,13093.00247232,9.999e-05,2]
[325253248,1714660726918,412.33320126,9.999e-05,2]
[325253249,1714660727434,565.22621102,9.999e-05,2]
[325253250,1714660783985,475.3846747,9.999e-05,2]
[325253251,1714660798803,154.70605849,9.999e-05,2]
[325253252,1714660847405,1622.34234505,9.999e-05,2]
[325253253,1714660849512,280.75978917,9.999e-05,2]
[325253254,1714660849576,154.94401824,9.999e-05,2]
[325253255,1714660849988,5972.53767733,9.999e-05,2]
[325253256,1714660850014,980.05838236,9.999e-05,2]
[325253257,1714660850305,308.25930969,9.999e-05,2]
[325253258,1714660851503,363.95014905,9.999e-05,2]
[325253259,1714660867584,155.02724318,9.999e-05,2]
[325253260,1714660908621,206.35747881,9.999e-05,2]
[325253261,1714660956649,154.70605849,9.999e-05,2]
[325253262,1714660977659,700.80098133,9.999e-05,2]
[325253263,1714660994178,583.7230286,9.999e-05,2]
[325253264,1714661338560,154.70605849,9.999e-05,2]
[325253265,1714661361841,479.8121591,0.00017552,2]
[325253266,1714661362180,1512.0326977,0.00017552,2]
[325253267,1714661379889,405.2460135,0.00017551,2]
[325253268,1714661384489,-473.07523748,0.00018543,2]
[325253269,1714661384512,-683.5156754,0.00018543,2]
[325253270,1714661384534,-154.70605849,0.00018543,2]
[325253271,1714661384560,-154.70605849,0.00018544,2]
[325253272,1714661384582,-1577.20853771,0.00018544,2]
[325253273,1714661384602,-193.89409139,0.00018545,2]
[325253274,1714661384623,-235.89828702,0.00018545,2]
[325253275,1714661384645,-314.91170855,0.00018546,2]
[325253276,1714661384667,-154.70605849,0.00018546,2]
[325253277,1714661384694,-1203.71658454,0.00018547,2]
[325253278,1714661384718,-1492.3136628,0.00018547,2]
[325253279,1714661384742,-154.70605849,0.00018547,2]
[325253280,1714661384763,-174.65132849,0.00018548,2]
[325253281,1714661384784,-891.13661831,0.00018548,2]
[325253282,1714661384805,-1203.71658454,0.00018549,2]
[325253283,1714661384826,-718.0782307,0.00018549,2]
[325253284,1714661384847,-1091.92588684,0.00018549,2]
[325253285,1714661384870,-2627.42239968,0.00018549,2]
[325253286,1714661384891,-25151.9066369,0.00018563,2]
[325253287,1714661384914,-24900.0,0.00018609,2]
[325253288,1714661384938,-205.75911912,0.00018929,2]
[325253289,1714661384960,-550.24541163,0.00019029,2]
[325253290,1714661384982,-250.0,0.0001903,2]
[325253291,1714661385006,-409.39448055,0.00019797,2]
[325253292,1714661385027,-362.43735535,0.00019798,2]
[325253293,1714661385048,-981.99841714,0.000198,2]
[325253294,1714661385070,-5822.72691429,0.00019801,2]
[325253295,1714661385091,-1361.4541687,0.000199,2]
[325253296,1714661385132,158.01446209,0.00018542,2]
[325253340,1714661433460,-775.19684388,0.00020821,2]
[325253342,1714661433473,-154.70605849,0.00020822,2]
[325253344,1714661433483,-652.1622917,0.00020823,2]
[325253346,1714661433498,-527.05896574,0.000209,2]
[325253349,1714661433508,-412.33320126,0.00020901,2]
[325253351,1714661433518,-154.70605849,0.00020913,2]
[325253352,1714661433528,-205.75911909,0.00024446,2]
[325253355,1714661433538,-166.754344,0.00028493,2]
[325253356,1714661433547,-163.577417,0.00028493,2]
[325253359,1714661433558,-164.66079013,0.000299,14]
[325253361,1714661433567,-205.75911909,0.00029962,2]
[325253362,1714661433577,-255.7,0.00029969,3]
[325253365,1714661433587,-205.75911909,0.00035479,2]
[325253366,1714661433597,-150.69860279,0.00039127,2]
[325253369,1714661433606,-906.33088989,0.00039449,30]
[325253370,1714661433616,-205.75911909,0.00040995,2]
[325253373,1714661433625,-353.14,0.00041085,3]
[325253375,1714661433634,-2742.6,0.00041085,3]
[325253376,1714661433643,-2742.6,0.00041085,3]
[325253378,1714661433653,-475.1375062,0.00041093,4]
[325253380,1714661433662,-412.45706466,0.00041093,4]
[325253383,1714661433672,-155.09257999,0.00041093,4]
[325253385,1714661433681,-702.24163653,0.00041093,4]
[325253387,1714661433690,-86.08276871,0.00041093,4]
[325253389,1714661433702,-1869.94118872,0.00041093,4]
[325253391,1714661433712,-155.22489177,0.00041093,4]
[325253393,1714661433724,-155.27698082,0.00041093,4]
[325253395,1714661433734,-154.92238737,0.00041093,4]
[325253397,1714661433743,-472.57205782,0.00041093,4]
[325253399,1714661433752,-1507.86705126,0.00041093,4]
[325253401,1714661433761,-2291.4605187,0.00041093,4]
[325253403,1714661433770,-717.74351934,0.00041093,4]
[325253405,1714661433780,-628.62876092,0.00041093,4]
[325253407,1714661433789,-1368.34797437,0.00041093,4]
[325253419,1714661433891,-242.63257134,0.00041093,4]
[325253422,1714661433902,-471.5479252,0.00041093,4]
[325253424,1714661433911,-387.62743411,0.00041093,4]
[325253426,1714661433920,-2626.02064492,0.00041093,4]
[325253428,1714661433929,-268.1786234,0.00041093,4]
[325253430,1714661433941,-1202.77534897,0.00041093,4]
[325253431,1714661433950,-201.08309994,0.00041093,4]
[325253433,1714661433960,-1676.66163046,0.00041093,4]
[325253436,1714661433973,-154.92238737,0.00041093,4]
[325253438,1714661433982,-556.5256896,0.00041093,4]
[325253439,1714661433990,-683.13984688,0.00041093,4]
[325253441,1714661433999,-549.79222647,0.00041093,4]
[325253444,1714661434009,-531.62756016,0.00041093,4]
[325253446,1714661434021,-1044.69360919,0.00041093,4]
[325253448,1714661434029,-347.27181927,0.00041093,4]
[325253450,1714661434039,-2262.4748283,0.00041093,2]
[325253452,1714661434048,-2590.391884,0.00041093,4]
[325253454,1714661434057,-5808.88501187,0.00041093,4]
[325253456,1714661434065,-1621.54418731,0.00041094,4]
[325253458,1714661434075,-15912.49369306,0.00041095,7]
[325253460,1714661434084,-500.0,0.00041095,7]
[325253462,1714661434093,-500.0,0.00041095,7]
[325253464,1714661434102,-500.0,0.00041095,7]
[325253466,1714661434111,-151.26689025,0.00041095,7]
[325253468,1714661434120,-500.0,0.00041095,7]
[325253470,1714661434129,-432.1298503,0.00041095,7]
[325253472,1714661434141,-67.8701497,0.00041095,7]
[325253474,1714661434151,-501.7585512,0.00041095,7]
[325253476,1714661434161,-500.0,0.00041095,7]
[325253478,1714661434170,-534.84692156,0.00041095,7]
[325253480,1714661434180,-500.0,0.00041095,7]
[325253482,1714661434190,-500.0,0.00041095,7]
[325253484,1714661434199,-500.0,0.00041095,7]
[325253486,1714661434209,-500.0,0.00041095,7]
[325253488,1714661434222,-500.0,0.00041095,7]
[325253490,1714661434232,-500.0,0.00041095,7]
[325253492,1714661434244,-151.0,0.00041095,7]
[325253493,1714661434255,-500.0,0.00041095,7]
[325253495,1714661434265,-497.75148852,0.00041095,7]
[325253498,1714661434276,-500.0,0.00041095,7]
[325253500,1714661434286,-500.41745951,0.00041095,7]
[325253502,1714661434297,-500.0,0.00041095,7]
[325253504,1714661434307,-500.0,0.00041095,7]
[325253505,1714661434318,-501.26063707,0.00041095,7]
[325253507,1714661434328,-500.0,0.00041095,7]
[325253509,1714661434338,-500.0,0.00041095,7]
[325253511,1714661434348,-615.51806839,0.00041095,7]
[325253513,1714661434359,-503.48252202,0.00041095,7]
[325253515,1714661434369,-503.02902897,0.00041095,7]
[325253517,1714661434378,-500.0,0.00041095,7]
[325253519,1714661434387,-500.0,0.00041095,7]
[325253521,1714661434397,-500.0,0.00041095,7]
[325253523,1714661434408,-500.0,0.00041095,7]
[325253524,1714661434418,-502.10970261,0.00041095,7]
[325253525,1714661434429,-500.17208987,0.00041095,7]
[325253526,1714661434439,-501.47821308,0.00041095,7]
[325253527,1714661434449,-500.0,0.00041095,7]
[325253528,1714661434465,-500.0,0.00041095,7]
[325253529,1714661434481,-507.24258723,0.00041095,7]
[325253530,1714661434493,-515.6040852,0.00041095,7]
[325253531,1714661434504,-500.0,0.00041095,7]
[325253532,1714661434515,-501.73682092,0.00041095,7]
[325253533,1714661434525,-495.0,0.00041095,7]
[325253534,1714661434534,-500.31,0.00041095,7]
[325253535,1714661434544,-500.0,0.00041095,7]
[325253536,1714661434555,-500.0,0.00041095,7]
[325253537,1714661434564,-500.71945851,0.00041095,7]
[325253538,1714661434574,-500.0,0.00041095,7]
[325253539,1714661434583,-500.0,0.00041095,7]
[325253540,1714661434593,-500.0,0.00041095,7]
[325253541,1714661434602,-506.46051375,0.00041095,7]
[325253542,1714661434611,-500.0,0.00041095,7]
[325253543,1714661434621,-500.0,0.00041095,7]
[325253544,1714661434631,-500.9656353,0.00041095,7]
[325253545,1714661434640,-500.0,0.00041095,7]
[325253546,1714661434650,-500.0,0.00041095,7]
[325253547,1714661434659,-500.0,0.00041095,7]
[325253548,1714661434668,-500.0,0.00041095,7]
[325253549,1714661434677,-500.0,0.00041095,7]
[325253550,1714661434686,-508.22746464,0.00041095,7]
[325253551,1714661434696,-500.0,0.00041095,7]
[325253552,1714661434707,-500.0,0.00041095,7]
[325253553,1714661434717,-502.90288316,0.00041095,7]
[325253554,1714661434729,-500.0,0.00041095,7]
[325253555,1714661434738,-501.298402,0.00041095,7]
[325253556,1714661434748,-500.0,0.00041095,7]
[325253557,1714661434758,-514.63452134,0.00041095,7]
[325253558,1714661434767,-500.0,0.00041095,7]
[325253559,1714661434776,-500.0,0.00041095,7]
[325253560,1714661434786,-500.0,0.00041095,7]
[325253561,1714661434797,-502.04941122,0.00041095,7]
[325253562,1714661434806,-500.0,0.00041095,7]
[325253563,1714661434815,-503.26002999,0.00041095,7]
[325253564,1714661434825,-501.98764291,0.00041095,7]
[325253565,1714661434834,-500.0,0.00041095,7]
[325253566,1714661434843,-500.0,0.00041095,7]
[325253567,1714661434852,-500.0,0.00041095,7]
[325253568,1714661434861,-500.0,0.00041095,7]
[325253569,1714661434870,-500.0,0.00041095,7]
[325253570,1714661434880,-500.0,0.00041095,7]
[325253571,1714661434889,-500.0,0.00041095,7]
[325253572,1714661434898,-500.90631962,0.00041095,7]
[325253573,1714661434907,-501.03629885,0.00041095,7]
[325253574,1714661434917,-500.0,0.00041095,7]
[325253575,1714661434927,-500.0,0.00041095,7]
[325253576,1714661434936,-500.0,0.00041095,7]
[325253577,1714661434945,-504.77371144,0.00041095,7]
[325253578,1714661434955,-457.45495494,0.00041095,7]
[325253579,1714661434963,-578.94459361,0.00041095,7]
[325253580,1714661434974,-500.0,0.00041095,7]
[325253581,1714661434984,-500.0,0.00041095,7]
[325253582,1714661434993,-500.0,0.00041095,7]
[325253583,1714661435002,-376.69063625,0.00041095,7]
[325253584,1714661435011,-500.0,0.00041095,7]
[325253585,1714661435020,-429.10470652,0.00041095,7]
[325253639,1714661438704,-583.7230286,0.00026574,2]
[325253640,1714661438714,-1439.98682966,0.00041085,3]
[325253641,1714661438728,-388.41317034,0.00041085,3]
[325253642,1714661438737,-211.49476436,0.00041093,2]
[325253643,1714661438746,-70.89529348,0.00041095,7]
[325253644,1714661438756,-500.0,0.00041095,7]
[325253645,1714661438765,-500.0,0.00041095,7]
[325253646,1714661438774,-500.0,0.00041095,7]
[325253647,1714661438784,-293.75599187,0.00041095,7]
[325253649,1714661438793,-500.0,0.00041095,7]
[325253650,1714661438803,-500.0,0.00041095,7]
[325253651,1714661438812,-1000.0,0.00041095,7]
[325253653,1714661438821,-1000.0,0.00041095,7]
[325253655,1714661438830,-500.0,0.00041095,7]
[325253657,1714661438840,-501.63595622,0.00041095,7]
[325253658,1714661438849,-500.0,0.00041095,7]
[325253659,1714661438858,-500.0,0.00041095,7]
[325253660,1714661438868,-500.98970772,0.00041095,7]
[325253661,1714661438877,-500.94030469,0.00041095,7]
[325253662,1714661438886,-500.0,0.00041095,7]
[325253663,1714661438895,-500.0,0.00041095,7]
[325253664,1714661438904,-502.28360581,0.00041095,7]
[325253665,1714661438914,-500.0,0.00041095,7]
[325253666,1714661438923,-500.0,0.00041095,7]
[325253667,1714661438932,-500.0,0.00041095,7]
[325253668,1714661438941,-500.0,0.00041095,7]
[325253669,1714661438950,-500.0,0.00041095,7]
[325253670,1714661438959,-500.0,0.00041095,7]
[325253671,1714661438969,-616.8308766,0.00041095,7]
[325253672,1714661438981,-500.0,0.00041095,7]
[325253673,1714661438990,-500.0,0.00041095,7]
[325253674,1714661438999,-500.0,0.00041095,7]
[325253675,1714661439009,-500.0,0.00041095,7]
[325253676,1714661439018,-501.69253492,0.00041095,7]
[325253677,1714661439028,-423.08307155,0.00041095,7]
[325253678,1714661439037,-500.0,0.00041095,7]
[325253679,1714661439047,-500.0,0.00041095,7]
[325253680,1714661439056,-500.0,0.00041095,7]
[325253681,1714661439066,-500.0,0.00041095,7]
[325253682,1714661439076,-499.2912757,0.00041095,7]
[325253683,1714661439086,-503.19213171,0.00041095,7]
[325253684,1714661439095,-502.66858447,0.00041095,7]
[325253685,1714661439104,-501.10079304,0.00041095,7]
[325253686,1714661439114,-500.0,0.00041095,7]
[325253687,1714661439123,-500.0,0.00041095,7]
[325253688,1714661439133,-500.0,0.00041095,7]
[325253689,1714661439142,-500.0,0.00041095,7]
[325253690,1714661439151,-500.0,0.00041095,7]
[325253691,1714661439161,-500.0,0.00041095,7]
[325253692,1714661439170,-500.0,0.00041095,7]
[325253693,1714661439180,-500.0,0.00041095,7]
[325253694,1714661439189,-500.0,0.00041095,7]
[325253695,1714661439198,-500.0,0.00041095,7]
[325253696,1714661439207,-500.0,0.00041095,7]
[325253697,1714661439217,-500.0,0.00041095,7]
[325253698,1714661439228,-500.0,0.00041095,7]
[325253699,1714661439237,-500.0,0.00041095,7]
[325253700,1714661439246,-500.0,0.00041095,7]
[325253701,1714661439256,-500.0,0.00041095,7]
[325253702,1714661439265,-503.00263555,0.00041095,7]
[325253703,1714661439274,-500.0,0.00041095,7]
[325253704,1714661439284,-500.0,0.00041095,7]
[325253705,1714661439294,-500.0,0.00041095,7]
[325253706,1714661439303,-500.0,0.00041095,7]
[325253707,1714661439313,-500.0,0.00041095,7]
[325253708,1714661439322,-500.0,0.00041095,7]